bitfinex/quotes_BTCUSD_20260126
["timestamp","ask_amount","ask_price","bid_price","bid_amount"]
[1769467281965,0.11359951,88228.0,88225.0,0.4419721]
[1769467282163,0.00014,88230.0,88225.0,0.40789677]
[1769467282417,0.58927303,88243.0,88225.0,0.40789677]
[1769467282603,0.02475275,88244.0,88225.0,0.48376031]
[1769467282859,0.37934247,88240.0,88225.0,0.48376031]
[1769467283048,0.37934247,88240.0,88227.0,0.47604743]
[1769467283487,0.02475275,88244.0,88227.0,0.47604743]
[1769467283710,0.37934247,88250.0,88231.0,0.47604743]
[1769467283921,0.01133067,88256.0,88234.0,0.02257975]
[1769467284125,0.01133041,88258.0,88238.0,0.02257975]
[1769467284335,0.01133041,88258.0,88239.0,0.49862718]
[1769467284336,0.01133054,88257.0,88239.0,0.49862718]
[1769467284543,0.0679828,88258.0,88241.0,0.47604743]
[1769467284544,0.01133041,88258.0,88241.0,0.47604743]
[1769467284725,0.02475275,88259.0,88241.0,0.47604743]
[1769467285185,0.37934247,88260.0,88245.0,0.47604743]
[1769467285389,0.37934247,88260.0,88247.0,0.47604743]
[1769467285800,0.0458316,88263.0,88247.0,0.47604743]
[1769467286009,0.0458316,88263.0,88247.0,0.46035693]
[1769467286235,0.0458316,88263.0,88249.0,0.47604743]
[1769467286442,0.0458316,88263.0,88249.0,0.49862718]
[1769467286883,0.0004316,88263.0,88249.0,0.49862718]
[1769467288545,0.79681977,88270.0,88249.0,0.47604743]
[1769467288747,0.79681977,88270.0,88251.0,0.49862718]
[1769467289128,0.011329,88269.0,88251.0,0.49862718]
[1769467289377,0.39067134,88270.0,88251.0,0.49862718]
[1769467289771,0.37934247,88270.0,88252.0,0.02257975]
[1769467289964,0.48762797,88273.0,88255.0,0.47604743]
[1769467290166,0.48762797,88273.0,88257.0,0.47604743]
[1769467290167,0.01132849,88273.0,88257.0,0.47604743]
[1769467290395,0.08139485,88274.0,88257.0,0.47604743]
[1769467290396,0.02475275,88274.0,88257.0,0.47604743]
[1769467290531,0.01132849,88273.0,88257.0,0.49862718]
[1769467290728,0.03608111,88274.0,88257.0,0.49862718]
[1769467290933,0.37934247,88270.0,88257.0,0.49862718]
[1769467291114,0.37934247,88270.0,88258.0,0.04947447]
[1769467291536,0.37934247,88270.0,88258.0,0.5255219]
[1769467291742,0.02475275,88274.0,88258.0,0.47604743]
[1769467292422,0.00014005,88274.0,88259.0,0.02257975]
[1769467292643,0.00014005,88274.0,88262.0,0.47604743]
[1769467292912,0.00014005,88274.0,88264.0,0.47604743]
[1769467293961,0.00014005,88274.0,88264.0,0.47572654]
[1769467294571,0.00014005,88274.0,88264.0,0.49830629]
[1769467294798,0.00014005,88274.0,88264.0,0.54813692]
[1769467295513,0.00014005,88274.0,88264.0,0.52555717]
[1769467295711,0.00014005,88274.0,88266.0,0.47604743]
[1769467297680,0.2265317,88288.0,88264.0,0.04983063]
[1769467297681,0.03607893,88291.0,88267.0,0.02257975]
[1769467297897,0.02475275,88291.0,88270.0,0.47604743]
[1769467298063,0.02475275,88291.0,88273.0,0.02257975]
[1769467298268,0.02475275,88291.0,88275.0,0.02257975]
[1769467298511,0.02475275,88291.0,88276.0,0.47604743]
[1769467300399,0.02475275,88291.0,88270.0,0.37948252]
[1769467300400,0.01132541,88297.0,88273.0,0.02257975]
[1769467300566,0.01132541,88297.0,88276.0,0.47604743]
[1769467300758,0.01132554,88296.0,88278.0,0.49862718]
[1769467300959,0.02475275,88296.0,88278.0,0.47604743]
[1769467301193,0.02475275,88296.0,88280.0,0.47604743]
[1769467301394,0.02475275,88296.0,88279.0,0.02257975]
[1769467301395,0.37934247,88300.0,88281.0,0.02257975]
[1769467301598,0.37934247,88300.0,88284.0,0.47604743]
[1769467301861,0.02475275,88302.0,88284.0,0.49862718]
[1769467302397,0.03607752,88302.0,88284.0,0.49862718]
[1769467302716,0.03607752,88302.0,88285.0,0.47604743]
[1769467303369,0.0454,88303.0,88287.0,0.49862718]
[1769467303571,0.0454,88303.0,88289.0,0.47604743]
[1769467303982,0.03642188,88307.0,88289.0,0.47604743]
[1769467304104,0.01132425,88306.0,88290.0,0.52591015]
[1769467304312,0.03642188,88307.0,88290.0,0.52591015]
[1769467304999,0.02509775,88307.0,88291.0,0.02257975]
[1769467305212,0.000345,88307.0,88292.0,0.47604743]
[1769467305407,0.000345,88307.0,88292.0,0.49862718]
[1769467305770,0.000345,88307.0,88294.0,0.47604743]
[1769467305978,0.000345,88307.0,88294.0,0.49862718]
[1769467308256,0.000345,88307.0,88294.0,0.49845463]
[1769467308427,0.000345,88307.0,88294.0,0.49828208]
[1769467313370,0.0004616,88294.0,88285.0,0.49524025]
[1769467313573,0.03414647,88285.0,88270.0,0.4953803]
[1769467313778,0.09078232,88284.0,88270.0,0.4953803]
[1769467313977,0.0341466,88284.0,88270.0,0.4953803]
[1769467314155,0.0113272,88283.0,88270.0,0.4953803]
[1769467314355,0.01132733,88282.0,88270.0,0.4953803]
[1769467314560,0.01132746,88281.0,88270.0,0.4953803]
[1769467314932,0.01132759,88280.0,88270.0,0.4953803]
[1769467315139,0.49871648,88278.0,88270.0,0.00014005]
[1769467315367,0.02281952,88277.0,88270.0,0.00014005]
[1769467316021,0.0113281,88276.0,88270.0,0.00014005]
[1769467316241,0.01132913,88268.0,88250.0,0.49524025]
[1769467316503,0.02281952,88266.0,88251.0,0.05271509]
[1769467316716,0.02281952,88265.0,88250.0,0.49524025]
[1769467317160,0.01132964,88264.0,88250.0,0.49524025]
[1769467317378,0.01132926,88267.0,88249.0,0.0002084]
[1769467317379,0.02281952,88259.0,88249.0,0.0002084]
[1769467319677,0.05376883,88259.0,88249.0,0.0002084]
[1769467320315,0.02281952,88259.0,88249.0,0.0002084]
[1769467321907,0.01146905,88268.0,88250.0,0.49524025]
[1769467322108,0.06811502,88268.0,88250.0,0.5186268]
[1769467322317,0.01132926,88267.0,88250.0,0.5186268]
[1769467322539,0.02281952,88266.0,88250.0,0.5186268]
[1769467323866,0.02281952,88266.0,88250.0,0.57051032]
[1769467325673,0.00013992,88268.0,88250.0,0.57051032]
[1769467328708,0.00013992,88268.0,88250.0,0.54712377]
[1769467329046,0.00013992,88268.0,88250.0,0.57051032]
[1769467330963,0.00013992,88268.0,88251.0,0.02338655]
[1769467331160,0.00013992,88268.0,88252.0,0.52617465]
[1769467333575,0.00013992,88268.0,88254.0,0.49524025]
[1769467333777,0.00013992,88268.0,88256.0,0.49524025]
[1769467333989,0.05663558,88284.0,88260.0,0.02338655]
[1769467334199,0.05663558,88284.0,88258.0,0.37934247]
[1769467334200,0.01132708,88284.0,88263.0,0.49524025]
[1769467334360,0.02281952,88285.0,88267.0,0.49524025]
[1769467334578,0.02281952,88285.0,88268.0,0.02338655]
[1769467334787,0.17428,88290.0,88271.0,0.49524025]
[1769467334992,0.17428,88290.0,88274.0,0.02338655]
[1769467335191,0.17428,88290.0,88275.0,0.49524025]
[1769467335397,0.55362247,88290.0,88275.0,0.49524025]
[1769467336179,0.17428,88290.0,88275.0,0.49524025]
[1769467337723,0.55362247,88290.0,88275.0,0.49524025]
[1769467338324,0.37934247,88290.0,88275.0,0.49524025]
[1769467338732,0.37934247,88290.0,88275.0,0.54710293]
[1769467339163,0.02281952,88293.0,88275.0,0.54710293]
[1769467339366,0.18560541,88297.0,88277.0,0.47346579]
[1769467339563,0.20842431,88297.0,88279.0,0.47346579]
[1769467339759,0.1970989,88297.0,88279.0,0.47346579]
[1769467340342,0.1970989,88297.0,88279.0,0.4901631]
[1769467340563,0.0228189,88297.0,88279.0,0.4901631]
[1769467341045,0.0228189,88297.0,88279.0,0.47346579]
[1769467341264,0.0228189,88297.0,88279.0,0.49766995]
[1769467342098,0.0228189,88297.0,88280.0,0.02420416]
[1769467342265,0.0228189,88297.0,88281.0,0.48488779]
[1769467345510,0.03414431,88297.0,88281.0,0.48488779]
[1769467345687,0.03414431,88297.0,88280.0,0.02420416]
[1769467345688,0.01132515,88299.0,88283.0,0.48488779]
[1769467345839,0.01132515,88299.0,88285.0,0.48488779]
[1769467347659,0.44673759,88300.0,88285.0,0.48488779]
[1769467347859,0.39011229,88300.0,88285.0,0.48488779]
[1769467348303,0.0228189,88301.0,88285.0,0.48488779]
[1769467348477,0.0228189,88301.0,88285.0,0.50909195]
[1769467348478,0.0341438,88301.0,88285.0,0.50909195]
[1769467348901,0.01132502,88300.0,88285.0,0.50909195]
[1769467349214,0.0341438,88301.0,88285.0,0.50909195]
[1769467349416,0.0228189,88301.0,88285.0,0.50909195]
[1769467349792,0.18560477,88302.0,88285.0,0.48488779]
[1769467350113,0.18560477,88302.0,88280.0,0.37878727]
[1769467350114,0.17428,88302.0,88287.0,0.48488779]
[1769467350292,0.17428,88302.0,88288.0,0.0509092]
[1769467350542,0.17428,88302.0,88280.0,0.37878727]
[1769467350543,0.17428,88302.0,88290.0,0.50909195]
[1769467350935,0.0228189,88306.0,88290.0,0.50909195]
[1769467351135,0.045745,88307.0,88291.0,0.02420416]
[1769467351389,0.045745,88307.0,88292.0,0.48488779]
[1769467351900,0.04621195,88307.0,88294.0,0.48488779]
[1769467352738,0.05753608,88307.0,88294.0,0.48488779]
[1769467352896,0.04621195,88307.0,88294.0,0.48488779]
[1769467353093,0.05753608,88307.0,88294.0,0.48488779]
[1769467353317,0.00081195,88307.0,88294.0,0.48488779]
[1769467353526,0.01213608,88307.0,88294.0,0.48488779]
[1769467354267,0.00081195,88307.0,88294.0,0.48488779]
[1769467361601,0.00046695,88307.0,88294.0,0.48488779]
[1769467361820,0.00093095,88307.0,88294.0,0.48488779]
[1769467363608,0.00093095,88307.0,88294.0,0.50909195]
[1769467374683,0.373306,88313.0,88294.0,0.50909195]
[1769467374854,0.34036027,88313.0,88294.0,0.50909195]
[1769467375073,0.39697713,88313.0,88296.0,0.45832595]
[1769467375255,0.32903691,88313.0,88296.0,0.48324785]
[1769467376282,0.00013997,88313.0,88298.0,0.45832595]
[1769467376490,0.00013997,88313.0,88300.0,0.48324785]
[1769467380073,0.00013997,88313.0,88300.0,0.0249219]
[1769467382897,0.01146333,88313.0,88300.0,0.0249219]
[1769467383099,0.00013997,88313.0,88301.0,0.04832478]
[1769467383322,0.01146333,88313.0,88301.0,0.04832478]
[1769467383821,0.00032155,88301.0,88284.0,0.1742]
[1769467384225,0.02353135,88303.0,88284.0,0.1742]
[1769467384464,0.03485599,88303.0,88284.0,0.63252595]
[1769467384663,0.01132502,88300.0,88284.0,0.63252595]
[1769467384825,0.01132515,88299.0,88284.0,0.63252595]
[1769467385035,0.01132528,88298.0,88284.0,0.63252595]
[1769467385240,0.01132502,88300.0,88284.0,0.63252595]
[1769467385438,0.01132528,88298.0,88284.0,0.45832595]
[1769467385636,0.02353135,88296.0,88273.0,0.60592595]
[1769467385842,0.02353135,88296.0,88274.0,0.45832595]
[1769467385843,0.02353135,88295.0,88274.0,0.45832595]
[1769467386042,0.02353135,88295.0,88275.0,0.0249219]
[1769467386298,0.02353135,88295.0,88276.0,0.48324785]
[1769467386600,0.02353135,88295.0,88273.0,0.1476]
[1769467386601,0.02353135,88295.0,88278.0,0.45832595]
[1769467387242,0.01132579,88294.0,88278.0,0.45832595]
[1769467387487,0.01132579,88294.0,88270.0,0.55319947]
[1769467387488,0.01132579,88294.0,88279.0,0.0249219]
[1769467387646,0.01132579,88294.0,88280.0,0.0249219]
[1769467387849,0.01132566,88295.0,88280.0,0.0249219]
[1769467388433,0.01132579,88294.0,88281.0,0.0249219]
[1769467389602,0.01132592,88293.0,88281.0,0.0249219]
[1769467390653,0.06795508,88294.0,88281.0,0.0249219]
[1769467391082,0.01132592,88293.0,88281.0,0.0249219]
[1769467394066,0.01132579,88294.0,88281.0,0.0249219]
[1769467394271,0.01132592,88293.0,88281.0,0.0249219]
[1769467394505,0.06795483,88294.0,88281.0,0.0249219]
[1769467394926,0.01132579,88294.0,88282.0,0.0280196]
[1769467396679,0.06795526,88294.0,88282.0,0.0280196]
[1769467396854,0.01132579,88294.0,88282.0,0.0280196]
[1769467397627,0.01132592,88293.0,88282.0,0.0280196]
[1769467398761,0.06795495,88294.0,88282.0,0.0280196]
[1769467398985,0.01132592,88293.0,88280.0,0.37878727]
[1769467399232,0.55919379,88294.0,88280.0,0.37878727]
[1769467399714,0.01132592,88293.0,88280.0,0.37873392]
[1769467399934,0.55919379,88294.0,88280.0,0.37873392]
[1769467400695,0.01132592,88293.0,88280.0,0.37873392]
[1769467400820,0.01132592,88293.0,88280.0,0.41799731]
[1769467401912,0.01132592,88293.0,88280.0,0.37873392]
[1769467402118,0.01132592,88293.0,88281.0,0.04376066]
[1769467402319,0.06795501,88294.0,88281.0,0.04376066]
[1769467402519,0.0679548,88294.0,88281.0,0.04376066]
[1769467403480,0.01132579,88294.0,88281.0,0.04376066]
[1769467406551,0.06795404,88295.0,88281.0,0.04376066]
[1769467407941,0.06795404,88295.0,88283.0,0.05275564]
[1769467408137,0.01132566,88295.0,88285.0,0.05275564]
[1769467408901,0.0679534,88296.0,88285.0,0.05275564]
[1769467409063,0.01132566,88295.0,88285.0,0.05275564]
[1769467409264,0.0679534,88296.0,88285.0,0.05275564]
[1769467411028,0.01132566,88295.0,88285.0,0.05275564]
[1769467411698,0.01132541,88297.0,88285.0,0.05275564]
[1769467411910,0.01132554,88296.0,88285.0,0.05275564]
[1769467412243,0.06795329,88296.0,88285.0,0.05275564]
[1769467412457,0.01132554,88296.0,88285.0,0.05275564]
[1769467413686,0.06795332,88296.0,88285.0,0.05275564]
[1769467414058,0.01132554,88296.0,88285.0,0.05275564]
[1769467414493,0.06795419,88295.0,88285.0,0.05275564]
[1769467414682,0.06795361,88296.0,88285.0,0.05275564]
[1769467414858,0.01132566,88295.0,88285.0,0.05275564]
[1769467415059,0.01132554,88296.0,88285.0,0.05275564]
[1769467415481,0.06795342,88296.0,88285.0,0.05275564]
[1769467415694,0.06795326,88296.0,88285.0,0.05275564]
[1769467415897,0.01132566,88295.0,88285.0,0.05275564]
[1769467416331,0.06795343,88296.0,88285.0,0.05275564]
[1769467416513,0.06795261,88297.0,88285.0,0.05275564]
[1769467416712,0.01132566,88295.0,88285.0,0.05275564]
[1769467416957,0.01132554,88296.0,88285.0,0.05275564]
[1769467417114,0.06795363,88296.0,88285.0,0.05275564]
[1769467417312,0.06795261,88297.0,88285.0,0.05275564]
[1769467417518,0.01132554,88296.0,88285.0,0.05275564]
[1769467417742,0.01132541,88297.0,88285.0,0.05275564]
[1769467418091,0.12479899,88296.0,88285.0,0.05275564]
[1769467418334,0.06795259,88297.0,88285.0,0.05275564]
[1769467418335,0.01132541,88297.0,88285.0,0.05275564]
[1769467418596,0.12480056,88296.0,88285.0,0.05275564]
[1769467418783,0.11347502,88295.0,88285.0,0.05275564]
[1769467419186,0.11347502,88294.0,88285.0,0.05275564]
[1769467419342,0.01132541,88297.0,88285.0,0.05275564]
[1769467419550,0.12480269,88296.0,88285.0,0.05275564]
[1769467419766,0.11347715,88295.0,88285.0,0.05275564]
[1769467419979,0.11347715,88294.0,88271.0,0.45365842]
[1769467420180,0.11347715,88294.0,88272.0,0.0617503]
[1769467420436,0.12480294,88294.0,88275.0,0.45365842]
[1769467420602,0.01132592,88293.0,88278.0,0.0617503]
[1769467420920,0.01132592,88293.0,88280.0,0.45365842]
[1769467421216,0.01132579,88294.0,88282.0,0.0617503]
[1769467421418,0.11347652,88293.0,88282.0,0.0617503]
[1769467421590,0.01132579,88294.0,88282.0,0.0617503]
[1769467421803,0.1134691,88293.0,88282.0,0.0617503]
[1769467421954,0.01132579,88294.0,88282.0,0.0617503]
[1769467422159,0.1134691,88293.0,88283.0,0.02319415]
[1769467422414,0.01132579,88294.0,88283.0,0.02319415]
[1769467422615,0.11346395,88293.0,88283.0,0.02319415]
[1769467422827,0.01132592,88293.0,88283.0,0.02319415]
[1769467423888,0.06795488,88294.0,88283.0,0.02319415]
[1769467424091,0.11346035,88293.0,88283.0,0.02319415]
[1769467424341,0.01132579,88294.0,88283.0,0.02319415]
[1769467424517,0.11345787,88293.0,88283.0,0.02319415]
[1769467424730,0.01132579,88294.0,88283.0,0.02319415]
[1769467424924,0.11345787,88293.0,88283.0,0.02319415]
[1769467425123,0.01132579,88294.0,88283.0,0.02319415]
[1769467425320,0.11345787,88293.0,88283.0,0.02319415]
[1769467425526,0.01132579,88294.0,88284.0,0.04536584]
[1769467425704,0.11345661,88293.0,88284.0,0.04536584]
[1769467425907,0.06795426,88295.0,88284.0,0.04536584]
[1769467426143,0.11345661,88294.0,88284.0,0.04536584]
[1769467426342,0.11345661,88293.0,88284.0,0.04536584]
[1769467426683,0.11345661,88293.0,88282.0,0.0617503]
[1769467426684,0.06795497,88294.0,88282.0,0.0617503]
[1769467426885,0.11345634,88293.0,88282.0,0.0617503]
[1769467427079,0.06795497,88294.0,88282.0,0.0617503]
[1769467427289,0.11345634,88293.0,88282.0,0.0617503]
[1769467427460,0.01132579,88294.0,88282.0,0.0617503]
[1769467427662,0.06796118,88286.0,88271.0,0.0002166]
[1769467427830,0.01132631,88290.0,88271.0,0.0002166]
[1769467427831,0.54025395,88281.0,88271.0,0.0002166]
[1769467428033,0.48361622,88281.0,88271.0,0.0002166]
[1769467428235,0.54025374,88281.0,88271.0,0.0002166]
[1769467428435,0.06796564,88280.0,88271.0,0.0002166]
[1769467428670,0.01132797,88277.0,88271.0,0.0002166]
[1769467428882,0.01132785,88278.0,88271.0,0.00068355]
[1769467429189,0.05663871,88279.0,88271.0,0.00068355]
[1769467429350,0.01132797,88277.0,88271.0,0.00068355]
[1769467429550,0.01132785,88278.0,88271.0,0.00068355]
[1769467429816,0.01132797,88277.0,88271.0,0.00068355]
[1769467430008,0.06796746,88278.0,88271.0,0.00068355]
[1769467430205,0.01132785,88278.0,88271.0,0.00068355]
[1769467430791,0.47228876,88281.0,88263.0,0.0001479]
[1769467430792,0.011329,88269.0,88263.0,0.0001479]
[1769467430992,0.01132887,88270.0,88263.0,0.0001479]
[1769467431449,0.06797289,88272.0,88263.0,0.0001479]
[1769467431680,0.01132862,88272.0,88263.0,0.0001479]
[1769467432581,0.06797102,88273.0,88263.0,0.0001479]
[1769467432927,0.01132862,88272.0,88263.0,0.0001479]
[1769467433180,0.01132874,88271.0,88263.0,0.0001479]
[1769467433384,0.06797312,88271.0,88263.0,0.0001479]
[1769467433625,0.00032155,88262.0,88254.0,0.0001479]
[1769467433780,0.01132926,88267.0,88254.0,0.00028782]
[1769467433781,0.01132977,88263.0,88254.0,0.00028782]
[1769467434187,0.01133028,88259.0,88254.0,0.00028782]
[1769467434596,0.01133054,88257.0,88254.0,0.00028782]
[1769467435012,0.06798363,88257.0,88254.0,0.00028782]
[1769467435227,0.48733656,88257.0,88254.0,0.00028782]
[1769467435452,0.05665368,88256.0,88254.0,0.00028782]
[1769467435644,0.05665401,88255.0,88254.0,0.00028782]
[1769467436559,0.05665368,88256.0,88254.0,0.00028782]
[1769467436855,0.05665401,88255.0,88254.0,0.00028782]
[1769467437063,0.5326597,88256.0,88254.0,0.00028782]
[1769467437206,0.05665401,88255.0,88254.0,0.00028782]
[1769467437617,0.47600602,88256.0,88254.0,0.00028782]
[1769467437820,0.53265969,88256.0,88254.0,0.00028782]
[1769467438281,0.47600602,88256.0,88254.0,0.00028782]
[1769467439070,0.53265963,88256.0,88254.0,0.00028782]
[1769467439268,0.53265963,88256.0,88245.0,0.0001479]
[1769467439269,0.0113308,88255.0,88243.0,0.04749802]
[1769467439469,0.53265974,88256.0,88243.0,0.04749802]
[1769467439470,0.48733669,88256.0,88243.0,0.04749802]
[1769467439673,0.54399054,88256.0,88243.0,0.04749802]
[1769467439999,0.0113308,88255.0,88243.0,0.04749802]
[1769467440201,0.01133093,88254.0,88243.0,0.04749802]
[1769467440343,0.0113308,88255.0,88243.0,0.04749802]
[1769467440741,0.48733669,88256.0,88243.0,0.04749802]
[1769467441073,0.0679844,88256.0,88243.0,0.04749802]
[1769467441278,0.0113308,88255.0,88243.0,0.04749802]
[1769467441806,0.01133093,88254.0,88243.0,0.04749802]
[1769467442002,0.06798484,88255.0,88243.0,0.04749802]
[1769467442294,0.01133093,88254.0,88243.0,0.04749802]
[1769467442523,0.01133118,88252.0,88241.0,0.0002169]
[1769467442670,0.47600602,88252.0,88241.0,0.0002169]
[1769467443256,0.0113308,88255.0,88241.0,0.0002169]
[1769467443462,0.01133105,88253.0,88241.0,0.0002169]
[1769467443867,0.06798902,88250.0,88241.0,0.0002169]
[1769467444095,0.48733759,88249.0,88241.0,0.0002169]
[1769467444296,0.01133182,88247.0,88241.0,0.0002169]
[1769467444519,0.01133195,88246.0,88241.0,0.0002169]
[1769467444691,0.48733772,88248.0,88241.0,0.0002169]
[1769467444938,0.47600602,88248.0,88241.0,0.0002169]
[1769467445555,0.06798961,88249.0,88241.0,0.0002169]
[1769467445556,0.01133195,88246.0,88241.0,0.0002169]
[1769467445762,0.47600602,88245.0,88241.0,0.0002169]
[1769467446739,0.0113317,88248.0,88241.0,0.0002169]
[1769467446894,0.01133195,88246.0,88241.0,0.0002169]
[1769467447842,0.01133208,88245.0,88241.0,0.0002169]
[1769467448163,0.06799189,88246.0,88241.0,0.0002169]
[1769467448352,0.01133195,88246.0,88241.0,0.0002169]
[1769467449121,0.01133208,88245.0,88241.0,0.0002169]
[1769467449862,0.06799179,88246.0,88241.0,0.0002169]
[1769467450061,0.01133195,88246.0,88241.0,0.0002169]
[1769467450583,0.01133208,88245.0,88241.0,0.0002169]
[1769467450780,0.06799278,88245.0,88241.0,0.0002169]
[1769467450987,0.01133182,88247.0,88241.0,0.0002169]
[1769467451209,0.06799176,88246.0,88241.0,0.0002169]
[1769467451428,0.01133208,88245.0,88241.0,0.0002169]
[1769467451635,0.01133195,88246.0,88241.0,0.0002169]
[1769467451864,0.06799183,88246.0,88241.0,0.0002169]
[1769467452079,0.01133195,88246.0,88241.0,0.0002169]
[1769467452518,0.01133208,88245.0,88241.0,0.0002169]
[1769467452730,0.05666149,88244.0,88241.0,0.0002169]
[1769467452956,0.0113326,88241.0,88231.0,0.05574858]
[1769467453190,0.0113326,88241.0,88228.0,0.0002141]
[1769467453607,0.0113326,88241.0,88229.0,0.05261528]
[1769467453822,0.06799678,88240.0,88229.0,0.05261528]
[1769467454043,0.01133285,88239.0,88229.0,0.05261528]
[1769467454862,0.01133285,88239.0,88215.0,0.0002141]
[1769467454863,0.01133337,88235.0,88217.0,0.05574858]
[1769467455127,0.48733939,88235.0,88217.0,0.05588858]
[1769467455349,0.01133298,88238.0,88220.0,0.47019011]
[1769467455572,0.01133298,88238.0,88222.0,0.05574858]
[1769467456211,0.48733874,88240.0,88222.0,0.05574858]
[1769467456488,0.01133285,88239.0,88223.0,0.05574858]
[1769467456683,0.54400278,88240.0,88223.0,0.05574858]
[1769467456876,0.01133285,88239.0,88223.0,0.05574858]
[1769467457119,0.01133285,88239.0,88224.0,0.10835645]
[1769467457534,0.01133208,88245.0,88226.0,0.47019011]
[1769467457745,0.05666247,88242.0,88227.0,0.05574858]
[1769467457867,0.06799564,88241.0,88227.0,0.05574858]
[1769467458265,0.0113326,88241.0,88227.0,0.05574858]
[1769467458832,0.01133285,88239.0,88227.0,0.0717007]
[1769467459220,0.06799664,88240.0,88227.0,0.0717007]
[1769467459390,0.01133272,88240.0,88227.0,0.0717007]
[1769467459591,0.06799677,88240.0,88227.0,0.0717007]
[1769467459922,0.01133285,88239.0,88227.0,0.0717007]
[1769467460300,0.06799743,88239.0,88227.0,0.0717007]
[1769467461071,0.01133285,88239.0,88227.0,0.0717007]
[1769467462213,0.01133285,88239.0,88228.0,0.05260787]
[1769467462428,0.01133272,88240.0,88228.0,0.05260787]
[1769467463056,0.01133234,88243.0,88228.0,0.05260787]
[1769467463272,0.11322556,88242.0,88228.0,0.05260787]
[1769467463486,0.11322556,88241.0,88228.0,0.05260787]
[1769467463847,0.23368996,88244.0,88229.0,0.01595212]
[1769467464071,0.0679951,88242.0,88229.0,0.01595212]
[1769467464855,0.01133247,88242.0,88229.0,0.01595212]
[1769467465072,0.0113326,88241.0,88229.0,0.01595212]
[1769467465822,0.01133272,88240.0,88229.0,0.01595212]
[1769467466041,0.0113326,88241.0,88229.0,0.01595212]
[1769467466406,0.01133272,88240.0,88229.0,0.01595212]
[1769467467108,0.06799647,88240.0,88229.0,0.01595212]
[1769467467308,0.06799567,88241.0,88229.0,0.01595212]
[1769467467505,0.0113326,88241.0,88229.0,0.01595212]
[1769467467932,0.01133272,88240.0,88229.0,0.01595212]
[1769467468144,0.01133285,88239.0,88229.0,0.01595212]
[1769467469290,0.01133285,88239.0,88229.0,1e-08]
[1769467470084,0.01133285,88239.0,88226.0,0.49287796]
[1769467470668,0.36805074,88244.0,88226.0,0.49287796]
[1769467470866,0.06799684,88240.0,88226.0,0.49287796]
[1769467471487,0.01133272,88240.0,88226.0,0.49287796]
[1769467471701,0.06799646,88240.0,88226.0,0.49287796]
[1769467471917,0.01133285,88239.0,88226.0,0.49287796]
[1769467472117,0.01133272,88240.0,88226.0,0.49287796]
[1769467473992,0.01133285,88239.0,88226.0,0.49287796]
[1769467474236,0.01133298,88238.0,88226.0,0.47019011]
[1769467474452,0.01133298,88238.0,88228.0,0.19220222]
[1769467474636,0.01133298,88238.0,88228.0,0.0218031]
[1769467474787,0.01133298,88238.0,88219.0,0.02268785]
[1769467474998,0.06799717,88239.0,88222.0,0.47683248]
[1769467475205,0.06799717,88239.0,88223.0,0.49952033]
[1769467475463,0.01133298,88238.0,88223.0,0.49952033]
[1769467475854,0.06799717,88239.0,88224.0,0.02268785]
[1769467476081,0.01133285,88239.0,88225.0,0.47683248]
[1769467477674,0.0679975,88239.0,88225.0,0.47683248]
[1769467477881,0.01133285,88239.0,88225.0,0.47683248]
[1769467478085,0.1,88250.0,88217.0,0.00014]
[1769467478287,0.00032155,88225.0,88217.0,0.00014]
[1769467478609,0.0116562,88225.0,88217.0,0.00014]
[1769467478769,0.00032155,88225.0,88217.0,0.00014]
[1769467479105,0.02334727,88225.0,88217.0,0.00014]
[1769467479706,0.45858716,88225.0,88217.0,0.00014]
[1769467479913,0.48910472,88225.0,88217.0,0.00014]
[1769467480468,0.02302572,88224.0,88217.0,0.00014]
[1769467480657,0.03436088,88221.0,88217.0,0.00014]
[1769467480836,0.02302572,88221.0,88217.0,0.00014]
[1769467481045,0.03436088,88221.0,88217.0,0.00014]
[1769467481243,0.02302572,88221.0,88217.0,0.00014]
[1769467481424,0.03436088,88221.0,88217.0,0.00014]
[1769467482028,0.02302572,88221.0,88217.0,0.00014]
[1769467484016,0.46960077,88221.0,88217.0,0.00014]
[1769467484206,0.45826561,88221.0,88217.0,0.00014]
[1769467484778,0.02302572,88221.0,88217.0,0.00014]
[1769467485804,0.01133568,88217.0,88206.0,0.47683248]
[1769467486027,0.06801848,88212.0,88205.0,0.0002]
[1769467486201,0.01133632,88212.0,88205.0,0.0002]
[1769467486550,0.01133619,88213.0,88205.0,0.0002]
[1769467487195,0.52628128,88215.0,88205.0,0.0002]
[1769467487196,0.46960155,88215.0,88205.0,0.0002]
[1769467487524,0.01133606,88214.0,88205.0,0.0002]
[1769467487702,0.01133619,88213.0,88205.0,0.0002]
[1769467487903,0.06801665,88214.0,88205.0,0.0002]
[1769467488108,0.01133606,88214.0,88205.0,0.0002]
[1769467488323,0.52628125,88215.0,88205.0,0.0002]
[1769467488725,0.45826561,88215.0,88205.0,0.0002]
[1769467489136,0.52628132,88215.0,88205.0,0.0002]
[1769467489589,0.46960155,88215.0,88205.0,0.0002]
[1769467489788,0.58120433,88215.0,88205.0,0.0002]
[1769467489994,0.10199138,88234.0,88215.0,0.00967845]
[1769467490196,0.01133298,88238.0,88218.0,0.48195038]
[1769467490197,0.06799875,88237.0,88218.0,0.48195038]
[1769467490350,0.11330214,88236.0,88220.0,0.50607601]
[1769467490563,0.51390815,88240.0,88220.0,0.50607601]
[1769467490789,0.11329371,88239.0,88220.0,0.50607601]
[1769467491160,0.11329371,88238.0,88223.0,0.02412563]
[1769467491374,0.11329371,88237.0,88226.0,0.48195038]
[1769467491578,0.00014003,88237.0,88230.0,0.48195038]
[1769467491766,0.00014003,88237.0,88230.0,0.50607601]
[1769467498615,0.01162272,88247.0,88230.0,0.48195038]
[1769467498822,0.12462255,88246.0,88230.0,0.50607601]
[1769467499026,0.1132906,88245.0,88230.0,0.50607601]
[1769467499227,0.1132906,88244.0,88230.0,0.50607601]
[1769467499439,0.01133195,88246.0,88230.0,0.50607601]
[1769467499643,0.11328987,88245.0,88230.0,0.50607601]
[1769467499867,0.11328987,88244.0,88230.0,0.50607601]
[1769467500074,0.01133195,88246.0,88230.0,0.50607601]
[1769467500279,0.11328987,88245.0,88230.0,0.48195038]
[1769467500492,0.11328987,88244.0,88234.0,0.48195038]
[1769467500702,0.0002909,88247.0,88238.0,0.48195038]
[1769467501331,0.0002909,88247.0,88235.0,0.0454]
[1769467501332,0.0002909,88247.0,88239.0,0.02412563]
[1769467501538,0.49056098,88260.0,88241.0,0.50607601]
[1769467501746,0.11326149,88259.0,88241.0,0.50607601]
[1769467501958,0.1366061,88258.0,88241.0,0.50607601]
[1769467502206,0.1366061,88257.0,88241.0,0.50607601]
[1769467502410,0.11326149,88256.0,88241.0,0.50607601]
[1769467502623,0.02334461,88257.0,88241.0,0.50607601]
[1769467502840,0.47923082,88260.0,88243.0,0.48195038]
[1769467502841,0.11323474,88256.0,88243.0,0.48195038]
[1769467503056,0.0002327,88261.0,88246.0,0.02412563]
[1769467503266,0.11321333,88260.0,88247.0,0.48195038]
[1769467503487,0.0002327,88261.0,88240.0,0.55355082]
[1769467503488,0.0002327,88261.0,88248.0,0.02412563]
[1769467503703,0.0002327,88261.0,88249.0,0.48195038]